Cogmind - Beta 14 @@@ ROGUE MODE // 2024.10.25 @ 20:35:03 Player: VraethrDalkr Result: Destroyed by B-75 Beast with Heavy Plasma Cannon Performance ------------- Evolutions (5) 2500 Regions Visited (11) 2200 Robots Destroyed (68) 340 Value Destroyed (2604) 2604 Prototype IDs (10) 200 Alien Tech Used (0) 0 Bonus (219) 219 TOTAL SCORE: 8063 Bonus ------- Follower Combat Kills 72 Met Data Miner 300 Friendly Fire -153 Cogmind --------- Core Integrity 0/1000 Matter 261/300 Energy 100/100 System Corruption 3% Temperature Cool (12) Movement Core (50) Location -5/Factory Parts ------- > --- POWER (2) -------- (None) > --- PROPULSION (5) --- (None) > --- UTILITY (7) ------ (None) > --- WEAPON (3) ------- (None) > --- INVENTORY (5) ---- Improved Heavy Armor Plating Heavy Phase Cannon Gauss Rifle KE Penetrator Peak State ------------ > --- POWER ------------ Improved Deuterium Engine Light Angular Momentum Engine > --- PROPULSION ------- Armored Huge Wheel Armored Huge Wheel > --- UTILITY ---------- Advanced Heat Sink Advanced Heat Sink Medium Storage Unit Advanced Weight Redist. System Weapon Cycler Improved Heavy Armor Plating > --- WEAPON ----------- Plasma Rifle KE Penetrator Enhanced Gauss Cannon > --- INVENTORY -------- Light Nuclear Core Advanced Heat Sink Improved Coolant Injector Advanced Sensor Array Advanced Signal Interpreter Improved Terrain Scanner Heavy Phase Cannon Gauss Rifle Magnetic Acceleration Cannon [Rating: 74] Favorites ----------- Power Light Nuclear Core Engine Hybrid Deuterium Engine Power Core Light Nuclear Core Propulsion Armored Huge Wheel Wheel Armored Huge Wheel Hover Unit Hover Unit Utility Improved Heat Sink Device Improved Heat Sink Storage Medium Storage Unit Hackware Hacking Suite Protection Layered Light Armor Plating Weapon Gauss Cannon Energy Gun Gatling Laser Energy Cannon Ion Cannon Ballistic Gun KE Penetrator Ballistic Cannon Gauss Cannon Special Weapon Mining Laser Build | -11 -10 -10 -10 -8 -7 -7 -7 -7 -6 -6 -5 ------- Run | Yrd Mat Min Sub Mat Fac Low Low Dat Pro Fac Fac Slots Evolved 10 | . . . . 4 2 . . . . 2 2 Power 1 | . . . . 1 . . . . . . . Propulsion 3 | . . . . 2 . . . . . . 1 Utility 5 | . . . . 1 1 . . . . 2 1 Weapon 1 | . . . . . 1 . . . . . . Parts Attached 79 | 13 4 1 1 17 11 12 . . 2 6 12 Power 15 | 1 . . . 5 2 3 . . 2 . 2 Engine 10 | 1 . . . 4 2 1 . . 1 . 1 Core 5 | . . . . 1 . 2 . . 1 . 1 Reactor . | . . . . . . . . . . . . Propulsion 16 | 6 2 . . 4 1 2 . . . . 1 Treads . | . . . . . . . . . . . . Leg . | . . . . . . . . . . . . Wheel 14 | 6 . . . 4 1 2 . . . . 1 Hover 2 | . 2 . . . . . . . . . . Flight . | . . . . . . . . . . . . Utility 26 | 3 . . . 6 4 3 . . . 4 6 Device 17 | 2 . . . 3 1 2 . . . 4 5 Storage 2 | 1 . . . 1 . . . . . . . Processor . | . . . . . . . . . . . . Hackware 1 | . . . . 1 . . . . . . . Protection 6 | . . . . 1 3 1 . . . . 1 Artifact . | . . . . . . . . . . . . Weapon 22 | 3 2 1 1 2 4 4 . . . 2 3 Energy Gun 7 | . 1 . . . 2 2 . . . . 2 Energy Cannon 2 | . . . . 1 . 1 . . . . . Ballistic Gun 3 | 1 . . 1 . . . . . . 1 . Ballistic Cannon 6 | . . . . 1 2 1 . . . 1 1 Launcher . | . . . . . . . . . . . . Special Weapon 4 | 2 1 1 . . . . . . . . . Impact Weapon . | . . . . . . . . . . . . Slashing Weapon . | . . . . . . . . . . . . Piercing Weapon . | . . . . . . . . . . . . Special Melee Weapon . | . . . . . . . . . . . . Unidentified Prototypes . | . . . . . . . . . . . . Parts Lost 24 | . . . . 2 2 11 . . 1 1 7 Power 8 | . . . . 1 1 3 . . 1 . 2 Propulsion 5 | . . . . . . 2 . . . . 3 Utility 5 | . . . . 1 1 2 . . . . 1 Weapon 6 | . . . . . . 4 . . . 1 1 Highest Loss Streak 6 | . . . . 1 1 4 . . 1 1 6 To Critical Strikes 2 | . . . . . . 2 . . . . . Average Slot Usage (%) 80 | . 100 100 100 81 82 81 76 76 77 86 75 Engine 6 | . 14 14 14 17 11 3 . . 4 6 6 Core 5 | . . . . . 2 9 7 7 4 6 3 Wheel 14 | . 19 . . 18 14 14 15 15 15 13 10 Device 17 | . 14 14 14 11 18 15 15 15 15 26 24 Storage 7 | . 14 14 14 9 7 7 7 7 7 6 4 Protection 5 | . . . . 5 4 6 7 7 7 6 4 Energy Gun 6 | . 10 14 14 . 6 9 7 7 7 6 4 Energy Cannon 4 | . . . . 8 7 4 7 7 7 . . Ballistic Gun 2 | . 14 11 14 3 . . . . . 5 4 Ballistic Cannon 6 | . . . . 5 7 7 7 7 7 6 4 Peak Build Rating 74 | 10 10 10 10 40 48 49 45 45 52 61 74 Average Rating 46 | 6 9 10 10 36 44 46 45 45 47 58 66 On Entrance 31 | . 10 10 10 10 39 48 45 45 45 52 60 Naked Turns 12 | . . . . . . . . . . . 12 Heaviest Build 65 | 11 11 11 11 43 52 49 40 40 52 54 65 Greatest Support 66 | 32 20 12 12 56 56 56 56 56 56 56 66 Greatest Overweight (x) 7 | 1 . . . 1 . . . . 1 . 7 Average Overweight (x) . | . . . . . . . . . . . . Largest Inventory Capacity 10 | 8 8 8 8 10 10 10 10 10 10 10 10 Average Capacity 9 | 7 8 8 8 9 10 10 10 10 10 10 9 Most Carried 10 | 8 8 8 8 10 10 10 7 7 9 10 10 Average Carried 8 | 4 7 8 8 8 9 8 7 7 7 8 9 Final Capacity 10 | 8 8 8 8 10 10 10 10 10 10 10 5 Final Carried 10 | 8 8 8 8 10 10 7 7 7 9 10 5 Class Distribution -------------------- 41% | Tank 38% | Scavenger-Tank 15% | Mutant 5% | Scavenger-Mutant Dominant Class ---------------- Mutant | -10/Materials Mutant | -10/Mines Mutant | -10/Subcaves Mutant | -8/Materials Tank | -7/Factory Tank | -7/Lower Caves Tank | -7/Lower Caves Tank | -7/Data Miner Tank | -6/Proximity Caves Scavenger-Tank | -6/Factory Scavenger-Tank | -5/Factory Resources | -11 -10 -10 -10 -8 -7 -7 -7 -7 -6 -6 -5 ----------- Run | Yrd Mat Min Sub Mat Fac Low Low Dat Pro Fac Fac Matter Collected 1929 | 360 26 . . 404 60 398 9 . 85 112 475 Remotely 407 | . . . . . . . . . . 112 295 Salvage Created 2522 | 196 43 . . 515 111 694 . . 226 121 616 Parts 108 | 18 4 . . 17 8 20 . . 8 5 28 Haulers Intercepted . | . . . . . . . . . . . . Recyclers Shooed 2 | . 1 . . . . . . . . . 1 Parts Field Recycled . | . . . . . . . . . . . . Retrieved Matter . | . . . . . . . . . . . . Parts Self-Destructed 26 | . . . . . . 15 2 . 9 . . Prevented . | . . . . . . . . . . . . Kills | -11 -10 -10 -10 -8 -7 -7 -7 -7 -6 -6 -5 ------- Run | Yrd Mat Min Sub Mat Fac Low Low Dat Pro Fac Fac Combat Hostiles Destroyed 52 | . . . . 10 2 19 . . 5 4 12 Guns 16 | . . . . . . 5 . . 1 3 7 Cannons 35 | . . . . 10 2 13 . . 4 1 5 Classes Destroyed 13 | 3 2 . . 3 1 3 . . 1 . . Worker 2 | 1 . . . . . . . . . . 1 Builder 2 | . 1 . . 1 . . . . . . . Tunneler 5 | 4 . . . . . . . . . . 1 Recycler 2 | 1 . . . 1 . . . . . . . Minesweeper 1 | . . . . . . 1 . . . . . Operator 1 | . 1 . . . . . . . . . . Watcher 2 | . . . . 1 . . . . . . 1 Swarmer 11 | . . . . 1 . 5 . . 1 4 . Grunt 28 | . . . . 9 . 9 . . 2 . 8 Brawler 2 | . . . . . . 1 . . . 1 . Duelist 2 | . . . . . . 2 . . . . . Sentry 6 | . . . . . 2 2 . . 1 . 1 Hunter 4 | . . . . . . . . . 1 . 3 Best Kill Streak 8 | 2 1 . . 7 1 8 . . 2 2 5 Combat Bots Only 8 | . . . . 3 1 8 . . 2 2 5 Max Kills in Single Turn 2 | 1 1 . . 2 1 1 . . 1 1 2 Gunslinging . | . . . . . . . . . . . . Exploded . | . . . . . . . . . . . . Melee . | . . . . . . . . . . . . Uniques/NPCs Destroyed . | . . . . . . . . . . . . Combat | -11 -10 -10 -10 -8 -7 -7 -7 -7 -6 -6 -5 -------- Run | Yrd Mat Min Sub Mat Fac Low Low Dat Pro Fac Fac Hostile Shots Fired 587 | . . . . 61 69 177 . . 58 33 189 Missed 182 | . . . . 14 28 45 . . 24 12 59 Damage Taken 6168 | . . . . 701 479 1785 . . 374 242 2587 Core 1432 | . . . . 100 5 258 . . 61 . 1008 Absorbed by Shields 11 | . . . . . . . . . . . 11 Regen/Repaired (Parts) 158 | . . . . . 158 . . . . . . Core Remaining (%) 86 | 100 . . 100 81 . . . . 53 100 . Volleys Fired 190 | 30 7 3 . 50 6 41 . . 8 8 37 Largest 3 | 2 2 1 . 2 3 3 . . 3 3 3 Hottest 208 | 120 60 100 . 104 160 208 . . 208 208 170 Shots Fired 443 | 33 14 3 . 100 18 117 . . 23 24 111 Gun 202 | 30 14 . . 13 6 42 . . 8 15 74 Cannon 235 | . . . . 87 12 75 . . 15 9 37 Launcher . | . . . . . . . . . . . . Special 6 | 3 . 3 . . . . . . . . . Kinetic 229 | 30 7 . . 50 6 41 . . 6 15 74 Thermal 214 | 3 7 3 . 50 12 76 . . 17 9 37 Explosive . | . . . . . . . . . . . . Electromagnetic . | . . . . . . . . . . . . Robot Hit Streak 18 | 17 4 . . 6 11 18 . . 11 3 13 Robot Miss Streak 5 | 2 2 . . 3 2 5 . . 4 5 4 Penetration Max 1 | . . . . . . 1 . . . . 1 Secondary Targets . | . . . . . . . . . . . . Shots Hit Robots 290 | 25 8 . . 56 13 84 . . 17 13 74 Core Hits 147 | 12 6 . . 22 6 39 . . 12 9 41 Critical Kills 2 | . . . . . . 1 . . . . 1 Critical Parts Destroyed 1 | . . . . . . . . . . . 1 Critical Strikes 14 | . . . . 1 . 3 . . . . 10 Burn 1 | . . . . . . . . . . . 1 Meltdown 1 | . . . . . . 1 . . . . . Destroy 2 | . . . . . . . . . . . 2 Blast 10 | . . . . 1 . 2 . . . . 7 Melee Attacks . | . . . . . . . . . . . . Impact . | . . . . . . . . . . . . Slashing . | . . . . . . . . . . . . Piercing . | . . . . . . . . . . . . Sneak Attacks . | . . . . . . . . . . . . Combat Hostiles . | . . . . . . . . . . . . Follow-up Attacks . | . . . . . . . . . . . . Damage Inflicted 6546 | 219 80 . . 1320 261 1916 . . 546 249 1955 Guns 2633 | 195 80 . . 52 59 700 . . 197 197 1153 Cannons 3889 | . . . . 1268 202 1216 . . 349 52 802 Explosions . | . . . . . . . . . . . . Melee . | . . . . . . . . . . . . Ramming . | . . . . . . . . . . . . Kinetic 3293 | 195 35 . . 582 64 785 . . 146 129 1357 Thermal 3253 | 24 45 . . 738 197 1131 . . 400 120 598 Explosive . | . . . . . . . . . . . . Electromagnetic . | . . . . . . . . . . . . Impact . | . . . . . . . . . . . . Slashing . | . . . . . . . . . . . . Piercing . | . . . . . . . . . . . . Highest Corruption 7 | . . . . . . 7 7 7 7 . 3 Average Corruption 6 | . . . . . . 7 7 7 7 . 1 Corruption Purged . | . . . . . . . . . . . . Corruption Blocked . | . . . . . . . . . . . . Effects 32 | . . . . . . 6 8 3 14 . 1 Message Errors 5 | . . . . . . 1 1 1 2 . . Matter Fused 10 | . . . . . . 2 4 2 2 . . Heat Flow Errors 3 | . . . . . . . 1 . 2 . . Energy Discharges 4 | . . . . . . 2 1 . 1 . . Data Loss (minor) 3 | . . . . . . . . . 2 . 1 Data Loss (major) 3 | . . . . . . 1 1 . 1 . . Misfires 1 | . . . . . . . . . 1 . . Alerts 1 | . . . . . . . . . 1 . . Weapon Failures 2 | . . . . . . . . . 2 . . Overload Shots . | . . . . . . . . . . . . Overflow Damage 111 | . . . . 28 . 32 . . . . 51 Projectiles 111 | . . . . 28 . 32 . . . . 51 Explosions . | . . . . . . . . . . . . Melee . | . . . . . . . . . . . . Knockbacks 16 | . . . . 3 . 5 . . 1 1 6 Impact . | . . . . . . . . . . . . Kinetic 16 | . . . . 3 . 5 . . 1 1 6 Secondary . | . . . . . . . . . . . . Self-Inflicted Damage . | . . . . . . . . . . . . Shots . | . . . . . . . . . . . . Rammed . | . . . . . . . . . . . . Targets Rammed . | . . . . . . . . . . . . Kicked . | . . . . . . . . . . . . Crushed . | . . . . . . . . . . . . Highest Temperature 419 | 40 26 70 . 295 60 278 203 . 419 92 119 Average Temperature 68 | 24 15 35 . 57 22 93 108 . 133 37 43 Received Heat Transfer 1776 | . . . . 396 90 543 . . 144 24 579 Effects 3 | . . . . . . 1 . . 2 . . Shutdowns 1 | . . . . . . . . . 1 . . Energy Bleed 2 | . . . . . . 1 . . 1 . . Siege Activations . | . . . . . . . . . . . . Robots Corrupted . | . . . . . . . . . . . . Combat Hostiles . | . . . . . . . . . . . . Parts Fried . | . . . . . . . . . . . . Impact Corruptions . | . . . . . . . . . . . . Robots Melted 1 | . . . . . . 1 . . . . . Combat Hostiles 1 | . . . . . . 1 . . . . . Parts Melted 9 | . . . . . 1 5 . . 1 . 2 Heat Transferred 6669 | 50 100 . . 1184 370 2390 . . 850 275 1450 Parts Sabotaged . | . . . . . . . . . . . . Parts Stolen . | . . . . . . . . . . . . Parts Stripped . | . . . . . . . . . . . . Power Chain Reactions . | . . . . . . . . . . . . Alert | -11 -10 -10 -10 -8 -7 -7 -7 -7 -6 -6 -5 ------- Run | Yrd Mat Min Sub Mat Fac Low Low Dat Pro Fac Fac Peak Influence 357 | 30 44 16 . 275 175 . . . . 174 357 Initial 84 | . 19 16 . 3 68 . . . . . 84 Average 127 | 13 26 16 . 84 105 . . . . 124 208 Maximum Alert Level 1 | . . . . 1 . . . . . . 1 Low Security (%) 77 | 100 100 100 . 89 100 . . . . 100 40 Level 1 22 | . . . . 10 . . . . . . 59 Level 2 . | . . . . . . . . . . . . Level 3 . | . . . . . . . . . . . . Level 4 . | . . . . . . . . . . . . Level 5 . | . . . . . . . . . . . . High Security . | . . . . . . . . . . . . Max Security . | . . . . . . . . . . . . Squads Dispatched 7 | . 1 . . 2 2 . . . . . 2 Investigation . | . . . . . . . . . . . . Extermination 1 | . . . . . . . . . . . 1 Reinforcement 6 | . 1 . . 2 2 . . . . . 1 Assault . | . . . . . . . . . . . . Garrison . | . . . . . . . . . . . . Intercept . | . . . . . . . . . . . . Searches Triggered . | . . . . . . . . . . . . Construction Impeded . | . . . . . . . . . . . . Haulers Reinforced . | . . . . . . . . . . . . Active Scanning Responses . | . . . . . . . . . . . . Cargo Convoy Interrupts . | . . . . . . . . . . . . Stealth | -11 -10 -10 -10 -8 -7 -7 -7 -7 -6 -6 -5 --------- Run | Yrd Mat Min Sub Mat Fac Low Low Dat Pro Fac Fac Distress Signals 3 | . . . . 3 . . . . . . . Communications Jammed . | . . . . . . . . . . . . Distress Signals . | . . . . . . . . . . . . Times Spotted 97 | . 2 . . 18 5 28 1 . 7 8 28 Peak Tracking Total 9 | . 1 . . 4 3 9 1 . 3 4 8 Tactical Retreats 10 | . . . . 1 1 5 . . . 1 2 Traps | -11 -10 -10 -10 -8 -7 -7 -7 -7 -6 -6 -5 ------- Run | Yrd Mat Min Sub Mat Fac Low Low Dat Pro Fac Fac Traps Triggered 2 | . . . . . 1 . . . . . 1 Indirectly . | . . . . . . . . . . . . Trap Hack Attempts . | . . . . . . . . . . . . Triggered . | . . . . . . . . . . . . Disarmed . | . . . . . . . . . . . . Reprogrammed . | . . . . . . . . . . . . Reused . | . . . . . . . . . . . . Traps Extracted . | . . . . . . . . . . . . Installed . | . . . . . . . . . . . . Triggered 5 | . . . . . . 2 2 . 1 . . Machines | -11 -10 -10 -10 -8 -7 -7 -7 -7 -6 -6 -5 ---------- Run | Yrd Mat Min Sub Mat Fac Low Low Dat Pro Fac Fac Machines Disabled 6 | . . . . 2 1 . . . . . 3 Max in Single Turn 1 | . . . . 1 1 . . . . . 1 Machines Repaired . | . . . . . . . . . . . . Machines Dismantled . | . . . . . . . . . . . . Machines Sabotaged . | . . . . . . . . . . . . Overloaded Fab Kills . | . . . . . . . . . . . . Hacking | -11 -10 -10 -10 -8 -7 -7 -7 -7 -6 -6 -5 --------- Run | Yrd Mat Min Sub Mat Fac Low Low Dat Pro Fac Fac Machines Accessed 13 | . . . . 3 5 . . 4 . . 1 Terminals 8 | . . . . 3 4 . . . . . 1 Fabricators . | . . . . . . . . . . . . Repair Stations 1 | . . . . . 1 . . . . . . Recycling Units . | . . . . . . . . . . . . Scanalyzers . | . . . . . . . . . . . . Garrison Access . | . . . . . . . . . . . . Total Hacks 51 | . . . . 6 11 . . 31 . . 3 Successful 40 | . . . . 3 5 . . 31 . . 1 Failed 11 | . . . . 3 6 . . . . . 2 Catastrophic . | . . . . . . . . . . . . Database Lockouts . | . . . . . . . . . . . . Manual . | . . . . . . . . . . . . Terminals 17 | . . . . 6 8 . . . . . 3 Fabricators . | . . . . . . . . . . . . Repair Stations 3 | . . . . . 3 . . . . . . Recycling Units . | . . . . . . . . . . . . Scanalyzers . | . . . . . . . . . . . . Garrison Access . | . . . . . . . . . . . . Terminal Hacks 38 | . . . . 3 3 . . 31 . . 1 Record 12 | . . . . 1 . . . 11 . . . Part Schematic 13 | . . . . . 1 . . 12 . . . Robot Schematic 5 | . . . . . . . . 5 . . . Robot Analysis 1 | . . . . 1 . . . . . . . Prototype ID Bank 3 | . . . . . . . . 3 . . . Emergency Access Points 1 | . . . . . 1 . . . . . . Alert Level 1 | . . . . 1 . . . . . . . Locate Traps 1 | . . . . . . . . . . . 1 Zone Layout 1 | . . . . . 1 . . . . . . Fabricator Hacks . | . . . . . . . . . . . . Repair Station Hacks 2 | . . . . . 2 . . . . . . Scan Component 1 | . . . . . 1 . . . . . . Repair 1 | . . . . . 1 . . . . . . Recycling Unit Hacks . | . . . . . . . . . . . . Scanalyzer . | . . . . . . . . . . . . Garrison Access Hacks . | . . . . . . . . . . . . Unauthorized Hacks . | . . . . . . . . . . . . Terminals . | . . . . . . . . . . . . Fabricators . | . . . . . . . . . . . . Repair Stations . | . . . . . . . . . . . . Recycling Units . | . . . . . . . . . . . . Scanalyzers . | . . . . . . . . . . . . Garrison Access . | . . . . . . . . . . . . Data Cores Recovered 1 | . 1 . . . . . . . . . . Used . | . . . . . . . . . . . . Hacking Detections 8 | . . . . 3 4 . . . . . 1 Full Trace Events . | . . . . . . . . . . . . Feedback Events . | . . . . . . . . . . . . Feedback Blocked . | . . . . . . . . . . . . Robot Schematics Acquired 5 | . . . . . . . . 5 . . . Robots Built . | . . . . . . . . . . . . Authchips . | . . . . . . . . . . . . Time . | . . . . . . . . . . . . Total Robot Build Rating . | . . . . . . . . . . . . Part Schematics Acquired 13 | . . . . . 1 . . 12 . . . Parts Built . | . . . . . . . . . . . . Authchips . | . . . . . . . . . . . . Time . | . . . . . . . . . . . . Total Part Build Rating . | . . . . . . . . . . . . Parts Repaired 1 | . . . . . 1 . . . . . . Time 44 | . . . . . 44 . . . . . . Parts Recycled . | . . . . . . . . . . . . Recycled Matter . | . . . . . . . . . . . . Retrieved Matter . | . . . . . . . . . . . . Retrieved Components . | . . . . . . . . . . . . Parts Scanalyzed . | . . . . . . . . . . . . Part Schematics Acquired . | . . . . . . . . . . . . Parts Damaged . | . . . . . . . . . . . . Bothacking | -11 -10 -10 -10 -8 -7 -7 -7 -7 -6 -6 -5 ------------ Run | Yrd Mat Min Sub Mat Fac Low Low Dat Pro Fac Fac Used RIF Installer . | . . . . . . . . . . . . Robots Hacked . | . . . . . . . . . . . . Non-combat . | . . . . . . . . . . . . Combat . | . . . . . . . . . . . . Robot Hacks Applied . | . . . . . . . . . . . . Relay Couplers Released . | . . . . . . . . . . . . Fabnet Peak Effective % . | . . . . . . . . . . . . Robots Rewired 2 | . . . . . . 2 . . . . . Allies Hacked . | . . . . . . . . . . . . Hacks Repelled . | . . . . . . . . . . . . Allies | -11 -10 -10 -10 -8 -7 -7 -7 -7 -6 -6 -5 -------- Run | Yrd Mat Min Sub Mat Fac Low Low Dat Pro Fac Fac Total Allies 2 | . . . . . . 2 . . . . . Largest Group 2 | . . . . . . 2 2 2 2 1 . Highest-Rated Group 50 | . . . . . . 50 50 50 50 20 . Highest-Rated Ally 30 | . . . . . . 30 30 30 30 20 . Total Orders . | . . . . . . . . . . . . Ally Attacks 10 | . . . . . . . 3 . 7 . . Total Damage 315 | . . . . . . . 106 . 209 . . Kills 2 | . . . . . . . 1 . 1 . . Allies Corrupted . | . . . . . . . . . . . . Allies Melted . | . . . . . . . . . . . . Intel | -11 -10 -10 -10 -8 -7 -7 -7 -7 -6 -6 -5 ------- Run | Yrd Mat Min Sub Mat Fac Low Low Dat Pro Fac Fac Robot Analysis Total 1 | . . . . 1 . . . . . . . Derelict Logs Recovered 4 | . . . . . . 1 1 . 2 . . Drone Launches . | . . . . . . . . . . . . Drone Recoveries . | . . . . . . . . . . . . Exploration | -11 -10 -10 -10 -8 -7 -7 -7 -7 -6 -6 -5 ------------- Run | Yrd Mat Min Sub Mat Fac Low Low Dat Pro Fac Fac Turns Passed 4764 | 183 127 58 16 484 553 1223 369 101 446 297 907 Spaces Moved 3867 | 103 127 61 26 275 467 996 361 84 382 245 740 Core 29 | 3 . . . . . . . . . . 26 Treads . | . . . . . . . . . . . . Legs . | . . . . . . . . . . . . Wheels 3692 | 100 77 . . 266 467 996 361 84 382 245 714 Hover 146 | . 50 61 26 9 . . . . . . . Flight . | . . . . . . . . . . . . Fastest Speed 50 | 50 56 56 56 100 100 100 100 100 100 100 50 Average Speed 97 | 88 70 56 56 100 100 100 100 100 100 100 99 Slowest Speed 400 | 100 80 56 56 126 100 100 100 100 115 100 400 Overloaded Moves . | . . . . . . . . . . . . Propulsion Burnouts . | . . . . . . . . . . . . Robots Hopped . | . . . . . . . . . . . . Cave-ins Triggered . | . . . . . . . . . . . . Exploration Rate (%) 29 | 4 29 16 4 21 14 87 41 69 40 9 17 Regions Visited 11 Branch Regions 6 Pre-discovered Areas 4 | . . . . . . 1 1 1 1 . . Known Exits Taken . | . . . . . . . . . . . . Unknown Exits Taken 11 | 1 1 1 1 1 1 1 1 1 1 1 . Scrap Searched 3 | . . . . . . 2 1 . . . . Spaces Dug . | . . . . . . . . . . . . Terrain Destroyed 42 | . . . . 15 1 10 . . 1 2 13 Melee . | . . . . . . . . . . . . Projectile 42 | . . . . 15 1 10 . . 1 2 13 AOE . | . . . . . . . . . . . . Terrain Rammed . | . . . . . . . . . . . . Walls Destroyed . | . . . . . . . . . . . . Machines Disabled . | . . . . . . . . . . . . Actions | -11 -10 -10 -10 -8 -7 -7 -7 -7 -6 -6 -5 --------- Run | Yrd Mat Min Sub Mat Fac Low Low Dat Pro Fac Fac Total 4519 | 170 155 74 26 389 547 1127 369 101 424 282 855 Wait 231 | . 3 10 . 17 47 55 7 18 31 14 29 Move 3856 | 102 126 60 25 274 466 995 360 83 381 244 740 Hop . | . . . . . . . . . . . . Pick Up 64 | 14 6 . . 13 7 7 . . 2 6 9 Fast Attach 24 | 7 2 . . 5 2 3 . . 2 1 2 Attach 26 | 1 . . . 8 3 8 . . . 3 3 Detach 1 | . . . . . . . . . . . 1 Swap 29 | 5 2 1 1 4 6 1 . . . 2 7 Drop 73 | 11 9 . . 18 10 2 . . . 4 19 Fire 190 | 30 7 3 . 50 6 41 . . 8 8 37 Melee . | . . . . . . . . . . . . Ram . | . . . . . . . . . . . . Kick . | . . . . . . . . . . . . Crush . | . . . . . . . . . . . . Escape Stasis 8 | . . . . . . . . . . . 8 Rewire 17 | . . . . . . 15 2 . . . . Trap . | . . . . . . . . . . . . Miscellaneous . | . . . . . . . . . . . . Route ------- -11/Scrapyard -10/Materials -10/Mines -10/Subcaves -8/Materials -7/Factory -7/Lower Caves -7/Lower Caves -7/Data Miner -6/Proximity Caves -6/Factory -5/Factory History --------- Turn | Location | Event 16 | -11/Scrapyard | Discovered new exit (range 15) 184 | -11/Scrapyard | Entered Materials 291 | -10/Materials | Discovered new exit (range 14) 311 | -10/Materials | Entered Mines 338 | -10/Mines | Discovered new exit (range 8) 369 | -10/Mines | Entered Subcaves 375 | -10/Subcaves | Discovered new exit (range 7) 385 | -10/Subcaves | Entered Materials 385 | -8/Materials | Evolved 4 slots: Power x1, Propulsion x2, Utility x1 504 | -8/Materials | Build established: Mutant 865 | -8/Materials | Discovered new exit (range 3) 869 | -8/Materials | Entered Factory 869 | -7/Factory | Evolved 2 slots: Utility x1, Weapon x1 1179 | -7/Factory | Discovered new exit (range 11) 1376 | -7/Factory | Repaired Arm. Huge Wheel 1422 | -7/Factory | Entered Lower Caves 1482 | -7/Lower Caves | Build established: Tank 1634 | -7/Lower Caves | Encountered a Warlord checkpoint 1745 | -7/Lower Caves | Learned location of Zion (-6) 1949 | -7/Lower Caves | Attracted the attention of an 0b10 checkpoint 2008 | -7/Lower Caves | Lost 4 parts (2p1n1w) 2294 | -7/Lower Caves | Build established: Scavenger-Tank 2373 | -7/Lower Caves | Attracted the attention of an 0b10 outpost 2433 | -7/Lower Caves | Lost 4 parts (1p1u2w) 2463 | -7/Lower Caves | Destroyed 8 combat bots 2593 | -7/Lower Caves | Discovered new exit (range 11) 2645 | -7/Lower Caves | Entered another Lower Caves area 2645 | -7/Lower Caves | Accompanied by 2 allies 2671 | -7/Lower Caves | Build established: Tank 2981 | -7/Lower Caves | Discovered new exit (range 6) 3014 | -7/Lower Caves | Entered Data Miner 3014 | -7/Data Miner | Accompanied by 2 allies 3014 | -7/Data Miner | Discovered new exit (range 6) 3038 | -7/Data Miner | Met Data Miner 3059 | -7/Data Miner | Learned location of Section 7 (-2) 3059 | -7/Data Miner | Acquired the access code to Warlord's prototype stash 3075 | -7/Data Miner | Received God Mode back door access code from Data Miner 3115 | -7/Data Miner | Entered Proximity Caves 3115 | -6/Proximity Caves | Accompanied by 2 allies 3144 | -6/Proximity Caves | Learned location of Extension (-6) 3250 | -6/Proximity Caves | Attracted the attention of an 0b10 checkpoint 3414 | -6/Proximity Caves | Learned Factory machine intel 3531 | -6/Proximity Caves | Discovered new exit (range 14) 3561 | -6/Proximity Caves | Entered Factory 3561 | -6/Factory | Accompanied by 1 ally 3561 | -6/Factory | Evolved 2 slots: Utility x2 3562 | -6/Factory | Loaded intel: 220 machine locations 3735 | -6/Factory | Build established: Scavenger-Tank 3827 | -6/Factory | Discovered new exit (range 5) 3858 | -6/Factory | Entered another Factory area 3858 | -5/Factory | Evolved 2 slots: Propulsion x1, Utility x1 4590 | -5/Factory | Spotted B-75 Beast 4753 | -5/Factory | Released all parts (6) 4758 | -5/Factory | Core integrity fell below 50% 4762 | -5/Factory | Core integrity fell below 20% 4765 | -5/Factory | Destroyed by B-75 Beast with Heavy Plasma Cannon Last Messages --------------- 04744_ Arm. Huge Wheel destroyed. 04753_ Released Adv. Weight Redist. System. 04753_ Released Enh. Gauss Cannon. 04753_ Released Adv. Heat Sink. 04753_ Released Weapon Cycler. 04753_ Released Med. Storage Unit. 04753_ Released Adv. Heat Sink. 04755_ System corrupted: Component data lost. 04758_ Critical hit (Burn: +37). 04759_ Penetrated by Slug. 04761_ K-01 Serf cleans the Fusion Modulator. 04761_ Fusion Modulator explodes. 04761_ K-01 Serf destroyed. 04761_ Fusion Modulator explodes. 04761_ Terminal disabled. 04761_ Fusion Modulator explodes. 04761_ K-01 Serf destroyed. 04761_ G-50 Soldier destroyed. 04761_ R-10 Processor destroyed. 04761_ K-01 Serf collects debris. Map ----- +----------------------------------------------------+ | ?????????????????????????????????????????????????? | | ?????????????????????????????????????????????????? | | ?????????????????????????????????????????????????? | | ?????????????????????????????????????????????????? | | ?????????????????????????????????????????????????? | | ?????????????????????????????????????????????????? | | ?????????????????????????????????????????????????? | | ?????????????????????????????????????????????????? | | ?????????????????????????????????????????????????? | | ?????????????????????????????????????????????????? | | ???????????????????????? ?????????????????????? | | ???????????????????????? ???????????????????? | | ???????????????????????? ????????????????? | | ???????????????????????# ???????????????? | | ???????????????????????# #???????????????? | | ???????????????????????# #???????????????? | | ???????????????????????# #???????????????? | | ???????????????????????# #???????????????? | | ???????????????????????# #???????????????? | | ?????????????????? ????# u #???????????????? | | ?????????????????# ??# #???????????????? | | ?????????????????# ??# #???????????????? | | ?????????????????# ??# #???????????????? | | ?????????????????# ?## #???????????????? | | ?????????????????# ?# #???????????????? | | ?????????????????# ##T @ #???????????????? | | ?????????????????# ###t #???????????????? | | ?????????????????# ### ################# | | ?????????????????# m | | ????????????????## m | | ????????????????# | | ????????????????# | | ????????????????+ = | | ????????????????# | | ????????????????# =! | | ????????????????# ! | | ????????????????# | | ????????????????# #####???# | | ??????????????? "% "#??????# | | ????############" #??????# | | !!!] #???#######+### | | ????############" !% #???# # | | ??????????????# !]! #???# # | | ??????????????# #???# # | | ??????????????### %! #???# " | | ???????????###??# !| #???# " | | ??????????##"##?# ######/#####+#???# " | | ??????????# ### # #???# # | | ??????????# # ! #???# # | | ??????????# ######### #???###+##""### | +----------------------------------------------------+ Best States ------------- Heat Dissipation 78 Energy Generation 29 Energy Capacity 1500 Matter Stores 300 Matter Capacity 300 Sight Range 16 Terrain Scan Range 16 Terrain Scan Density 10 Additional Mass Support 9 Armor Coverage 600 Weapon Cycling 15 Phase Shifting 5 Evasion (%) 53 Offensive Hacking 10 Item Schematics ----------------- Adv. Sensor Array | -7/Factory | Hacked Combat Drone Bay | -7/Data Miner | Free Lgt. Regenerative Plating | -7/Data Miner | Free Biomechanical Wings | -7/Data Miner | Free Gravity Neutralizer | -7/Data Miner | Free Imp. Heavy Machine Gun | -7/Data Miner | Free Field Propulsion Drive | -7/Data Miner | Free Imp. Dynamic Insulation System | -7/Data Miner | Free Imp. Plasma Cutter | -7/Data Miner | Free EM Disruption Field | -7/Data Miner | Free Imp. Component Analysis Suite | -7/Data Miner | Free Imp. Force Booster | -7/Data Miner | Free Adv. Focal Shield | -7/Data Miner | Free Robot Schematics ------------------ M-28 Smith | -7/Data Miner | Free G-47 Trooper | -7/Data Miner | Free W-25 Informer | -7/Data Miner | Free H-66 Slayer | -7/Data Miner | Free P-60 Hacker | -7/Data Miner | Free Fabricated ------------ Nothing Alien Tech Used ----------------- None Achievements -------------- None Challenges ------------ None Game ------ Seed PoweredPropulsionPrototype Manual? 0 Play Time 00:57:49 Cumulative 125.4 hours Start 2024.10.25 @ 14:47:24 End 2024.10.25 @ 20:35:03 Sessions 3 Manual Loads 0 Difficulty Rogue Special Mode None Game No. 63 Rogue 53 Adventurer 10 Explorer 0 Win Type - Total 1 Types 0/0/1/0/0/0/0/0/0 Lore% 27 Gallery% 48 Achievement% 41 Wizard Run 0 Options --------- Layout 1 ASCII 0 Keyboard 0 Movement Arrows Keybinds 0 Fullscreen 2 Font 32/SmallcapsGlow Map View 50x35 Zoom Use 0% Tactical HUD 1 Map Filters NONE Filters NONE Steam 0 RUN: 83e81ba6-a5c9-4f4e-a16d-a88474590528